[Event "Titled Tuesday Blitz August 08 Late 2023"]
[White "Vaglio Munoz, Jaime"]
[Black "FromTexas54"]
[WhiteFideId "6500145"]
[WhiteElo "2247"]
[BlackElo "2518"]
[Result "0-1"]
[Round "3"]
[TimeControl "180+1"]
[Date "2023.08.08"]
[WhiteClock "0:00:00"]
[BlackClock "0:01:07"]
[Board "126"]

1. Nf3 {[%clk 0:03:00]}  g6 {[%clk 0:03:00]} 2. c4 {[%clk 0:02:59]}  Bg7 {[%clk 0:03:00]} 3. Nc3 {[%clk 0:02:59]}  d6 {[%clk 0:03:00]} 4. g3 {[%clk 0:02:58]}  Nc6 {[%clk 0:03:00]} 5. Bg2 {[%clk 0:02:58]}  e5 {[%clk 0:02:59]} 6. d3 {[%clk 0:02:57]}  f5 {[%clk 0:03:00]} 7. Bg5 {[%clk 0:02:54]}  Bf6 {[%clk 0:02:53]} 8. h4 {[%clk 0:02:51]}  h6 {[%clk 0:02:52]} 9. Bxf6 {[%clk 0:02:47]}  Nxf6 {[%clk 0:02:53]} 10. a3 {[%clk 0:02:44]}  Be6 {[%clk 0:02:53]} 11. b4 {[%clk 0:02:43]}  Qd7 {[%clk 0:02:52]} 12. b5 {[%clk 0:02:42]}  Nd8 {[%clk 0:02:51]} 13. Rc1 {[%clk 0:02:35]}  c6 {[%clk 0:02:50]} 14. a4 {[%clk 0:02:34]}  a5 {[%clk 0:02:46]} 15. Rb1 {[%clk 0:02:18]}  O-O {[%clk 0:02:45]} 16. O-O {[%clk 0:02:16]}  f4 {[%clk 0:02:44]} 17. c5 {[%clk 0:02:07]}  Bh3 {[%clk 0:02:34]} 18. cxd6 {[%clk 0:02:05]}  Bxg2 {[%clk 0:02:33]} 19. Kxg2 {[%clk 0:02:05]}  fxg3 {[%clk 0:02:31]} 20. fxg3 {[%clk 0:02:02]}  Ng4 {[%clk 0:02:31]} 21. Qd2 {[%clk 0:01:58]}  Qxd6 {[%clk 0:02:27]} 22. Ne4 {[%clk 0:01:57]}  Qe7 {[%clk 0:02:26]} 23. Nh2 {[%clk 0:01:37]}  Rxf1 {[%clk 0:02:24]} 24. Rxf1 {[%clk 0:01:35]}  Nxh2 {[%clk 0:02:24]} 25. Kxh2 {[%clk 0:01:36]}  Kg7 {[%clk 0:02:18]} 26. Nf6 {[%clk 0:01:21]}  cxb5 {[%clk 0:02:08]} 27. Ng4 {[%clk 0:01:20]}  Nf7 {[%clk 0:02:06]} 28. axb5 {[%clk 0:01:19]}  a4 {[%clk 0:02:02]} 29. Rxf7+ {[%clk 0:01:00]}  Qxf7 {[%clk 0:01:49]} 30. Qxh6+ {[%clk 0:00:57]}  Kg8 {[%clk 0:01:49]} 31. Qg5 {[%clk 0:00:55]}  Qg7 {[%clk 0:01:27]} 32. Nxe5 {[%clk 0:00:37]}  Re8 {[%clk 0:01:22]} 33. d4 {[%clk 0:00:32]}  a3 {[%clk 0:01:22]} 34. Qe3 {[%clk 0:00:21]}  Qe7 {[%clk 0:01:17]} 35. Qb3+ {[%clk 0:00:18]}  Kg7 {[%clk 0:01:13]} 36. e3 {[%clk 0:00:11]}  Ra8 {[%clk 0:01:11]} 37. Nxg6 {[%clk 0:00:00]}  Kxg6 {[%clk 0:01:07]} 0-1


[Site "https://www.chess.com"]

[Event "Titled Tuesday Blitz August 08 Late 2023"]
[White "De Arruda, Leandro Formes"]
[Black "Domingo Nunez, Alejandro"]
[WhiteFideId "22722009"]
[BlackFideId "22245561"]
[WhiteElo "2222"]
[BlackElo "2515"]
[Result "0-1"]
[Round "3"]
[TimeControl "180+1"]
[Date "2023.08.08"]
[WhiteClock "0:00:07"]
[BlackClock "0:01:34"]
[Board "129"]

1. d4 {[%clk 0:03:00]}  g6 {[%clk 0:03:00]} 2. Nf3 {[%clk 0:03:00]}  Bg7 {[%clk 0:03:00]} 3. g3 {[%clk 0:03:00]}  Nf6 {[%clk 0:03:01]} 4. Bg2 {[%clk 0:03:01]}  O-O {[%clk 0:03:02]} 5. c4 {[%clk 0:03:01]}  d6 {[%clk 0:03:03]} 6. Nc3 {[%clk 0:03:02]}  Nbd7 {[%clk 0:03:04]} 7. e4 {[%clk 0:03:02]}  c5 {[%clk 0:03:05]} 8. d5 {[%clk 0:03:01]}  a6 {[%clk 0:03:04]} 9. a4 {[%clk 0:03:01]}  Rb8 {[%clk 0:03:04]} 10. O-O {[%clk 0:02:53]}  b6 {[%clk 0:03:04]} 11. Bf4 {[%clk 0:02:51]}  Ne8 {[%clk 0:03:04]} 12. Re1 {[%clk 0:02:49]}  Ne5 {[%clk 0:03:05]} 13. Nxe5 {[%clk 0:02:44]}  dxe5 {[%clk 0:03:06]} 14. Be3 {[%clk 0:02:42]}  Nd6 {[%clk 0:03:07]} 15. b3 {[%clk 0:02:40]}  f5 {[%clk 0:03:08]} 16. exf5 {[%clk 0:02:38]}  gxf5 {[%clk 0:03:07]} 17. Rc1 {[%clk 0:02:21]}  Qe8 {[%clk 0:02:54]} 18. f4 {[%clk 0:02:07]}  e4 {[%clk 0:02:47]} 19. a5 {[%clk 0:01:52]}  Qd8 {[%clk 0:02:16]} 20. axb6 {[%clk 0:01:42]}  Qxb6 {[%clk 0:02:17]} 21. Na4 {[%clk 0:01:23]}  Qxb3 {[%clk 0:02:17]} 22. Nxc5 {[%clk 0:01:06]}  Qa2 {[%clk 0:02:06]} 23. Rc2 {[%clk 0:00:56]}  Qa3 {[%clk 0:02:05]} 24. Bd4 {[%clk 0:00:37]}  Rf6 {[%clk 0:01:46]} 25. Bxf6 {[%clk 0:00:33]}  Qxc5+ {[%clk 0:01:45]} 26. Qd4 {[%clk 0:00:15]}  Qxd4+ {[%clk 0:01:43]} 27. Bxd4 {[%clk 0:00:16]}  Bxd4+ {[%clk 0:01:44]} 28. Kh1 {[%clk 0:00:16]}  Bc5 {[%clk 0:01:42]} 29. g4 {[%clk 0:00:13]}  fxg4 {[%clk 0:01:34]} 30. Bxe4 {[%clk 0:00:11]}  Nxe4 {[%clk 0:01:34]} 31. Rxe4 {[%clk 0:00:12]}  Bf5 {[%clk 0:01:34]} 32. Rce2 {[%clk 0:00:07]}  Rb1+ {[%clk 0:01:33]} 33. Kg2 {[%clk 0:00:07]}  Rg1# {[%clk 0:01:34]} 0-1


[Site "https://www.chess.com"]

[Event "Titled Tuesday Blitz August 08 Late 2023"]
[White "Geivondian, Arman"]
[Black "Oliveira, Tiago Batista"]
[WhiteFideId "24102032"]
[BlackFideId "2108291"]
[WhiteElo "2512"]
[BlackElo "2192"]
[Result "1-0"]
[Round "3"]
[TimeControl "180+1"]
[Date "2023.08.08"]
[WhiteClock "0:01:57"]
[BlackClock "0:00:14"]
[Board "133"]

1. e4 {[%clk 0:03:00]}  e5 {[%clk 0:02:58]} 2. Nf3 {[%clk 0:03:01]}  Nc6 {[%clk 0:02:58]} 3. Bb5 {[%clk 0:03:01]}  a6 {[%clk 0:02:57]} 4. Ba4 {[%clk 0:03:01]}  Nf6 {[%clk 0:02:57]} 5. O-O {[%clk 0:03:01]}  Nxe4 {[%clk 0:02:57]} 6. Re1 {[%clk 0:03:02]}  Nc5 {[%clk 0:02:55]} 7. Nxe5 {[%clk 0:03:02]}  Nxe5 {[%clk 0:02:53]} 8. Rxe5+ {[%clk 0:03:03]}  Be7 {[%clk 0:02:52]} 9. Bb3 {[%clk 0:02:57]}  Nxb3 {[%clk 0:02:52]} 10. axb3 {[%clk 0:02:58]}  O-O {[%clk 0:02:51]} 11. Nc3 {[%clk 0:02:58]}  Bf6 {[%clk 0:02:50]} 12. Re1 {[%clk 0:02:58]}  d5 {[%clk 0:02:49]} 13. d4 {[%clk 0:02:57]}  Qd6 {[%clk 0:02:44]} 14. Be3 {[%clk 0:02:53]}  Bf5 {[%clk 0:02:42]} 15. Qd2 {[%clk 0:02:53]}  c6 {[%clk 0:02:20]} 16. Bf4 {[%clk 0:02:53]}  Qb4 {[%clk 0:02:15]} 17. Be5 {[%clk 0:02:47]}  Bxe5 {[%clk 0:02:07]} 18. Rxe5 {[%clk 0:02:48]}  Bg6 {[%clk 0:02:06]} 19. Rae1 {[%clk 0:02:43]}  f6 {[%clk 0:02:04]} 20. R5e2 {[%clk 0:02:41]}  Rfe8 {[%clk 0:02:03]} 21. f3 {[%clk 0:02:08]}  Rxe2 {[%clk 0:01:55]} 22. Rxe2 {[%clk 0:02:08]}  Re8 {[%clk 0:01:53]} 23. Nb1 {[%clk 0:02:07]}  Qxd2 {[%clk 0:00:59]} 24. Rxe8+ {[%clk 0:02:06]}  Bxe8 {[%clk 0:00:58]} 25. Nxd2 {[%clk 0:02:07]}  Bg6 {[%clk 0:00:57]} 26. c3 {[%clk 0:02:07]}  Kf7 {[%clk 0:00:57]} 27. b4 {[%clk 0:02:07]}  Ke6 {[%clk 0:00:57]} 28. Kf2 {[%clk 0:02:07]}  h5 {[%clk 0:00:55]} 29. Ke3 {[%clk 0:02:07]}  Kf5 {[%clk 0:00:52]} 30. h4 {[%clk 0:02:05]}  Be8 {[%clk 0:00:50]} 31. Nb3 {[%clk 0:02:05]}  Bd7 {[%clk 0:00:45]} 32. Nc5 {[%clk 0:02:03]}  Bc8 {[%clk 0:00:34]} 33. Nd3 {[%clk 0:02:02]}  g5 {[%clk 0:00:33]} 34. g3 {[%clk 0:02:01]}  b6 {[%clk 0:00:30]} 35. Nf2 {[%clk 0:01:59]}  Bd7 {[%clk 0:00:26]} 36. g4+ {[%clk 0:01:58]}  Kg6 {[%clk 0:00:26]} 37. gxh5+ {[%clk 0:01:57]}  Kxh5 {[%clk 0:00:26]} 38. hxg5 {[%clk 0:01:57]}  fxg5 {[%clk 0:00:26]} 39. Nd3 {[%clk 0:01:57]}  g4 {[%clk 0:00:24]} 40. fxg4+ {[%clk 0:01:57]}  Kxg4 {[%clk 0:00:14]} 41. Ne5+ {[%clk 0:01:57]} 1-0


[Site "https://www.chess.com"]

[Event "Titled Tuesday Blitz August 08 Late 2023"]
[White "laskakid"]
[Black "Mickiewicz, Piotr"]
[BlackFideId "1114891"]
[WhiteElo "2060"]
[BlackElo "2510"]
[Result "1-0"]
[Round "3"]
[TimeControl "180+1"]
[Date "2023.08.08"]
[WhiteClock "0:00:04"]
[BlackClock "0:00:12"]
[Board "135"]

1. e4 {[%clk 0:03:00]}  e5 {[%clk 0:02:58]} 2. Nf3 {[%clk 0:02:59]}  Nc6 {[%clk 0:02:58]} 3. Bc4 {[%clk 0:02:58]}  Bc5 {[%clk 0:02:57]} 4. d3 {[%clk 0:02:56]}  Nf6 {[%clk 0:02:51]} 5. c3 {[%clk 0:02:56]}  a6 {[%clk 0:02:49]} 6. O-O {[%clk 0:02:52]}  d6 {[%clk 0:02:44]} 7. a4 {[%clk 0:02:52]}  O-O {[%clk 0:02:38]} 8. h3 {[%clk 0:02:46]}  h6 {[%clk 0:02:35]} 9. Re1 {[%clk 0:02:45]}  Ba7 {[%clk 0:02:22]} 10. Nbd2 {[%clk 0:02:41]}  Nh5 {[%clk 0:02:21]} 11. Nf1 {[%clk 0:02:20]}  Qf6 {[%clk 0:02:20]} 12. N1h2 {[%clk 0:02:05]}  Nf4 {[%clk 0:02:15]} 13. Be3 {[%clk 0:01:34]}  h5 {[%clk 0:02:13]} 14. Qd2 {[%clk 0:01:21]}  Bd7 {[%clk 0:01:24]} 15. Bxf4 {[%clk 0:01:16]}  exf4 {[%clk 0:01:23]} 16. d4 {[%clk 0:01:14]}  Rae8 {[%clk 0:01:22]} 17. b4 {[%clk 0:01:11]}  Ne7 {[%clk 0:01:21]} 18. b5 {[%clk 0:01:10]}  a5 {[%clk 0:01:18]} 19. e5 {[%clk 0:01:01]}  Qh6 {[%clk 0:01:14]} 20. Re2 {[%clk 0:00:50]}  d5 {[%clk 0:01:06]} 21. Bd3 {[%clk 0:00:48]}  Bf5 {[%clk 0:00:55]} 22. h4 {[%clk 0:00:38]}  Qg6 {[%clk 0:00:47]} 23. Bxf5 {[%clk 0:00:32]}  Qxf5 {[%clk 0:00:48]} 24. Rae1 {[%clk 0:00:29]}  Ng6 {[%clk 0:00:48]} 25. g3 {[%clk 0:00:19]}  fxg3 {[%clk 0:00:46]} 26. fxg3 {[%clk 0:00:19]}  Qh3 {[%clk 0:00:43]} 27. Qg5 {[%clk 0:00:16]}  Ne7 {[%clk 0:00:24]} 28. Nf1 {[%clk 0:00:16]}  Qf5 {[%clk 0:00:23]} 29. Qd2 {[%clk 0:00:15]}  Ng6 {[%clk 0:00:22]} 30. Ng5 {[%clk 0:00:14]}  Qg4 {[%clk 0:00:21]} 31. Rf2 {[%clk 0:00:13]}  f6 {[%clk 0:00:21]} 32. exf6 {[%clk 0:00:11]}  gxf6 {[%clk 0:00:21]} 33. Rxe8 {[%clk 0:00:10]}  Rxe8 {[%clk 0:00:22]} 34. Rxf6 {[%clk 0:00:09]}  Ne5 {[%clk 0:00:22]} 35. Rf4 {[%clk 0:00:06]}  Qd7 {[%clk 0:00:18]} 36. Ne3 {[%clk 0:00:06]}  Ng6 {[%clk 0:00:16]} 37. Rf6 {[%clk 0:00:05]}  Qg7 {[%clk 0:00:15]} 38. Rf7 {[%clk 0:00:05]}  Qh6 {[%clk 0:00:14]} 39. Rh7 {[%clk 0:00:04]}  Qxh7 {[%clk 0:00:13]} 40. Nxh7 {[%clk 0:00:04]}  Kxh7 {[%clk 0:00:14]} 41. Nf5 {[%clk 0:00:05]}  Rf8 {[%clk 0:00:13]} 42. Qh6+ {[%clk 0:00:04]}  Kg8 {[%clk 0:00:12]} 43. Qg7# {[%clk 0:00:04]} 1-0


[Site "https://www.chess.com"]

[Event "Titled Tuesday Blitz August 08 Late 2023"]
[White "Willy, Stephen"]
[Black "Gyulamiryan-koryun"]
[WhiteFideId "30981468"]
[WhiteElo "2509"]
[BlackElo "2059"]
[Result "1-0"]
[Round "3"]
[TimeControl "180+1"]
[Date "2023.08.08"]
[WhiteClock "0:02:34"]
[BlackClock "0:01:52"]
[Board "137"]

1. e4 {[%clk 0:03:00]}  e5 {[%clk 0:02:58]} 2. f4 {[%clk 0:02:58]}  exf4 {[%clk 0:02:57]} 3. Nf3 {[%clk 0:02:59]}  d6 {[%clk 0:02:58]} 4. Bc4 {[%clk 0:02:58]}  h6 {[%clk 0:02:57]} 5. h4 {[%clk 0:02:57]}  Be7 {[%clk 0:02:51]} 6. d4 {[%clk 0:02:52]}  g5 {[%clk 0:02:47]} 7. hxg5 {[%clk 0:02:51]}  Bg4 {[%clk 0:02:45]} 8. Bxf4 {[%clk 0:02:50]}  Bxf3 {[%clk 0:02:45]} 9. Qxf3 {[%clk 0:02:49]}  Rh7 {[%clk 0:02:26]} 10. g6 {[%clk 0:02:45]}  Rg7 {[%clk 0:02:18]} 11. gxf7+ {[%clk 0:02:44]}  Kd7 {[%clk 0:02:01]} 12. Qh3+ {[%clk 0:02:35]}  Kc6 {[%clk 0:02:00]} 13. Bd5+ {[%clk 0:02:35]}  Kb6 {[%clk 0:01:59]} 14. Qb3+ {[%clk 0:02:35]}  Ka6 {[%clk 0:01:55]} 15. Bc4+ {[%clk 0:02:34]}  b5 {[%clk 0:01:52]} 16. Qxb5# {[%clk 0:02:34]} 1-0


[Site "https://www.chess.com"]

[Event "Titled Tuesday Blitz August 08 Late 2023"]
[White "Lopez Gracia, Fernando"]
[Black "Dias, Paulo"]
[WhiteFideId "2207184"]
[BlackFideId "1900803"]
[WhiteElo "2328"]
[BlackElo "2451"]
[Result "1-0"]
[Round "3"]
[TimeControl "180+1"]
[Date "2023.08.08"]
[WhiteClock "0:00:10"]
[BlackClock "0:00:00"]
[Board "143"]

1. e4 {[%clk 0:02:57]}  c5 {[%clk 0:02:58]} 2. Nf3 {[%clk 0:02:56]}  d6 {[%clk 0:02:54]} 3. d4 {[%clk 0:02:54]}  cxd4 {[%clk 0:02:54]} 4. Nxd4 {[%clk 0:02:55]}  Nf6 {[%clk 0:02:54]} 5. Nc3 {[%clk 0:02:55]}  g6 {[%clk 0:02:54]} 6. f3 {[%clk 0:02:55]}  Bg7 {[%clk 0:02:53]} 7. Be3 {[%clk 0:02:55]}  O-O {[%clk 0:02:53]} 8. Qd2 {[%clk 0:02:56]}  Nc6 {[%clk 0:02:53]} 9. O-O-O {[%clk 0:02:56]}  d5 {[%clk 0:02:54]} 10. Nxc6 {[%clk 0:02:40]}  bxc6 {[%clk 0:02:53]} 11. exd5 {[%clk 0:02:40]}  Nxd5 {[%clk 0:02:53]} 12. Nxd5 {[%clk 0:02:40]}  cxd5 {[%clk 0:02:53]} 13. Qxd5 {[%clk 0:02:40]}  Qc7 {[%clk 0:02:53]} 14. Qc5 {[%clk 0:02:40]}  Qb7 {[%clk 0:02:44]} 15. Bd4 {[%clk 0:02:38]}  Bh6+ {[%clk 0:02:32]} 16. Be3 {[%clk 0:02:34]}  Bg7 {[%clk 0:02:31]} 17. Bd4 {[%clk 0:02:34]}  e5 {[%clk 0:02:00]} 18. Bxe5 {[%clk 0:02:26]}  Bh6+ {[%clk 0:01:55]} 19. Kb1 {[%clk 0:02:21]}  Be6 {[%clk 0:01:54]} 20. Qb5 {[%clk 0:02:09]}  Qc8 {[%clk 0:01:47]} 21. h4 {[%clk 0:02:00]}  a6 {[%clk 0:01:38]} 22. Qb6 {[%clk 0:02:00]}  Re8 {[%clk 0:01:11]} 23. Qd4 {[%clk 0:01:32]}  Qc6 {[%clk 0:00:41]} 24. h5 {[%clk 0:01:29]}  g5 {[%clk 0:00:36]} 25. f4 {[%clk 0:01:20]}  gxf4 {[%clk 0:00:35]} 26. Bxf4 {[%clk 0:01:16]}  Bg7 {[%clk 0:00:34]} 27. Qf2 {[%clk 0:01:06]}  Rad8 {[%clk 0:00:20]} 28. Bd3 {[%clk 0:00:56]}  h6 {[%clk 0:00:16]} 29. Qg3 {[%clk 0:00:54]}  Kh8 {[%clk 0:00:16]} 30. Rhe1 {[%clk 0:00:48]}  Qd5 {[%clk 0:00:16]} 31. c4 {[%clk 0:00:22]}  Qd4 {[%clk 0:00:15]} 32. Re2 {[%clk 0:00:19]}  Bxc4 {[%clk 0:00:11]} 33. Rxe8+ {[%clk 0:00:18]}  Rxe8 {[%clk 0:00:11]} 34. Rd2 {[%clk 0:00:18]}  Re1+ {[%clk 0:00:08]} 35. Qxe1 {[%clk 0:00:17]}  Bxd3+ {[%clk 0:00:05]} 36. Ka1 {[%clk 0:00:13]}  a5 {[%clk 0:00:00]} 37. Be3 {[%clk 0:00:10]} 1-0


[Site "https://www.chess.com"]

[Event "Titled Tuesday Blitz August 08 Late 2023"]
[White "Ramadoss, Ashokkumar"]
[Black "Baches Garcia, Guillermo"]
[WhiteFideId "5040990"]
[BlackFideId "2209764"]
[WhiteElo "2297"]
[BlackElo "2438"]
[Result "0-1"]
[Round "3"]
[TimeControl "180+1"]
[Date "2023.08.08"]
[WhiteClock "0:00:00"]
[BlackClock "0:00:05"]
[Board "145"]

1. Nf3 {[%clk 0:03:00]}  Nf6 {[%clk 0:02:58]} 2. c4 {[%clk 0:03:01]}  e6 {[%clk 0:02:58]} 3. d4 {[%clk 0:03:01]}  d5 {[%clk 0:02:58]} 4. Nc3 {[%clk 0:03:01]}  h6 {[%clk 0:02:59]} 5. cxd5 {[%clk 0:03:02]}  exd5 {[%clk 0:02:58]} 6. Bf4 {[%clk 0:03:03]}  Bd6 {[%clk 0:02:58]} 7. Bg3 {[%clk 0:03:02]}  Bxg3 {[%clk 0:02:58]} 8. hxg3 {[%clk 0:03:02]}  O-O {[%clk 0:02:58]} 9. e3 {[%clk 0:03:03]}  c6 {[%clk 0:02:48]} 10. Bd3 {[%clk 0:03:02]}  Qe7 {[%clk 0:02:42]} 11. Qc2 {[%clk 0:03:02]}  Re8 {[%clk 0:02:41]} 12. O-O {[%clk 0:02:52]}  Ne4 {[%clk 0:02:37]} 13. Rab1 {[%clk 0:02:52]}  Bf5 {[%clk 0:02:33]} 14. b4 {[%clk 0:02:49]}  a6 {[%clk 0:02:30]} 15. Rfc1 {[%clk 0:02:45]}  Nd7 {[%clk 0:02:25]} 16. Na4 {[%clk 0:02:45]}  Qf6 {[%clk 0:01:47]} 17. Nc5 {[%clk 0:02:44]}  Rab8 {[%clk 0:01:26]} 18. a4 {[%clk 0:02:41]}  Qe7 {[%clk 0:01:21]} 19. Nxd7 {[%clk 0:02:29]}  Bxd7 {[%clk 0:01:16]} 20. Ne5 {[%clk 0:02:29]}  Nd6 {[%clk 0:01:12]} 21. Qc5 {[%clk 0:02:23]}  b6 {[%clk 0:00:58]} 22. Qc2 {[%clk 0:02:18]}  b5 {[%clk 0:00:54]} 23. Nxc6 {[%clk 0:02:13]}  Bxc6 {[%clk 0:00:51]} 24. Qxc6 {[%clk 0:02:13]}  bxa4 {[%clk 0:00:43]} 25. Qxd5 {[%clk 0:02:00]}  Nb5 {[%clk 0:00:38]} 26. Qa2 {[%clk 0:01:49]}  a3 {[%clk 0:00:22]} 27. Bxb5 {[%clk 0:01:48]}  Rxb5 {[%clk 0:00:22]} 28. Qxa3 {[%clk 0:01:48]}  a5 {[%clk 0:00:22]} 29. Qa4 {[%clk 0:01:40]}  Reb8 {[%clk 0:00:21]} 30. Rc5 {[%clk 0:00:46]}  Rxb4 {[%clk 0:00:19]} 31. Rxb4 {[%clk 0:00:46]}  axb4 {[%clk 0:00:19]} 32. Qb3 {[%clk 0:00:41]}  Qa7 {[%clk 0:00:17]} 33. Rc1 {[%clk 0:00:28]}  Qa5 {[%clk 0:00:15]} 34. Rb1 {[%clk 0:00:28]}  Qb5 {[%clk 0:00:15]} 35. Rb2 {[%clk 0:00:25]}  g6 {[%clk 0:00:14]} 36. Rc2 {[%clk 0:00:25]}  Kg7 {[%clk 0:00:14]} 37. Rc7 {[%clk 0:00:25]}  Qf5 {[%clk 0:00:12]} 38. Rc4 {[%clk 0:00:24]}  Qb5 {[%clk 0:00:11]} 39. Rc5 {[%clk 0:00:22]}  Qb7 {[%clk 0:00:10]} 40. d5 {[%clk 0:00:21]}  h5 {[%clk 0:00:10]} 41. d6 {[%clk 0:00:21]}  Qd7 {[%clk 0:00:10]} 42. Rc7 {[%clk 0:00:20]}  Qxd6 {[%clk 0:00:11]} 43. Qxf7+ {[%clk 0:00:20]}  Kh6 {[%clk 0:00:11]} 44. Qg7+ {[%clk 0:00:16]}  Kg5 {[%clk 0:00:10]} 45. Rc4 {[%clk 0:00:14]}  b3 {[%clk 0:00:06]} 46. g4 {[%clk 0:00:09]}  hxg4 {[%clk 0:00:05]} 47. f4+ {[%clk 0:00:06]}  gxf3 {[%clk 0:00:05]} 48. Kf2 {[%clk 0:00:05]}  fxg2 {[%clk 0:00:04]} 49. Rf4 {[%clk 0:00:04]}  b2 {[%clk 0:00:04]} 50. Rf3 {[%clk 0:00:01]}  g1=Q+ {[%clk 0:00:04]} 51. Kxg1 {[%clk 0:00:01]}  b1=Q+ {[%clk 0:00:04]} 52. Kf2 {[%clk 0:00:00]}  Rb2+ {[%clk 0:00:05]} 0-1


[Site "https://www.chess.com"]

[Event "Titled Tuesday Blitz August 08 Late 2023"]
[White "Tqebuchava, Zurab"]
[Black "Ingunza Curro, Andres"]
[WhiteFideId "13601113"]
[BlackFideId "24526371"]
[WhiteElo "2273"]
[BlackElo "2425"]
[Result "0-1"]
[Round "3"]
[TimeControl "180+1"]
[Date "2023.08.08"]
[WhiteClock "0:00:00"]
[BlackClock "0:00:12"]
[Board "146"]

1. e4 {[%clk 0:02:59]}  Nc6 {[%clk 0:02:56]} 2. Nf3 {[%clk 0:02:58]}  e5 {[%clk 0:02:56]} 3. Bb5 {[%clk 0:02:58]}  a6 {[%clk 0:02:56]} 4. Ba4 {[%clk 0:02:58]}  Nge7 {[%clk 0:02:56]} 5. O-O {[%clk 0:02:57]}  g6 {[%clk 0:02:55]} 6. c3 {[%clk 0:02:56]}  Bg7 {[%clk 0:02:55]} 7. d4 {[%clk 0:02:56]}  exd4 {[%clk 0:02:56]} 8. cxd4 {[%clk 0:02:53]}  b5 {[%clk 0:02:57]} 9. Bb3 {[%clk 0:02:51]}  O-O {[%clk 0:02:54]} 10. d5 {[%clk 0:02:49]}  Na5 {[%clk 0:02:54]} 11. d6 {[%clk 0:02:38]}  Nec6 {[%clk 0:02:29]} 12. dxc7 {[%clk 0:02:06]}  Qxc7 {[%clk 0:02:27]} 13. Bd5 {[%clk 0:02:05]}  Bb7 {[%clk 0:02:11]} 14. Nc3 {[%clk 0:02:01]}  Ne7 {[%clk 0:01:55]} 15. Bxb7 {[%clk 0:01:36]}  Qxb7 {[%clk 0:01:56]} 16. Bg5 {[%clk 0:01:31]}  f6 {[%clk 0:01:56]} 17. Bf4 {[%clk 0:01:27]}  Rfe8 {[%clk 0:01:50]} 18. Rc1 {[%clk 0:01:15]}  Rad8 {[%clk 0:01:42]} 19. Qd6 {[%clk 0:00:57]}  Nc4 {[%clk 0:01:37]} 20. Qb4 {[%clk 0:00:54]}  d5 {[%clk 0:01:34]} 21. Nxd5 {[%clk 0:00:48]}  Nxd5 {[%clk 0:01:19]} 22. exd5 {[%clk 0:00:48]}  Qxd5 {[%clk 0:01:19]} 23. b3 {[%clk 0:00:46]}  Qe4 {[%clk 0:01:07]} 24. Bc7 {[%clk 0:00:40]}  Rc8 {[%clk 0:00:55]} 25. bxc4 {[%clk 0:00:39]}  Rxc7 {[%clk 0:00:52]} 26. Rfe1 {[%clk 0:00:34]}  Qc6 {[%clk 0:00:45]} 27. Rxe8+ {[%clk 0:00:30]}  Qxe8 {[%clk 0:00:46]} 28. c5 {[%clk 0:00:26]}  Bf8 {[%clk 0:00:44]} 29. h3 {[%clk 0:00:21]}  a5 {[%clk 0:00:35]} 30. Qb3+ {[%clk 0:00:20]}  Qf7 {[%clk 0:00:34]} 31. Qd3 {[%clk 0:00:18]}  Bxc5 {[%clk 0:00:27]} 32. Rd1 {[%clk 0:00:16]}  Kg7 {[%clk 0:00:26]} 33. Qxb5 {[%clk 0:00:15]}  Bb4 {[%clk 0:00:24]} 34. Nd4 {[%clk 0:00:12]}  h5 {[%clk 0:00:15]} 35. Qe2 {[%clk 0:00:11]}  Kh7 {[%clk 0:00:14]} 36. Qf3 {[%clk 0:00:10]}  Rd7 {[%clk 0:00:13]} 37. Nb3 {[%clk 0:00:09]}  Rxd1+ {[%clk 0:00:12]} 38. Qxd1 {[%clk 0:00:10]}  a4 {[%clk 0:00:13]} 39. Nc1 {[%clk 0:00:07]}  Ba3 {[%clk 0:00:14]} 40. Nd3 {[%clk 0:00:05]}  Qxa2 {[%clk 0:00:13]} 41. Qxa4 {[%clk 0:00:05]}  Qb1+ {[%clk 0:00:12]} 42. Kh2 {[%clk 0:00:04]}  Qxd3 {[%clk 0:00:12]} 43. Qd7+ {[%clk 0:00:00]}  Qxd7 {[%clk 0:00:12]} 0-1


[Site "https://www.chess.com"]

[Event "Titled Tuesday Blitz August 08 Late 2023"]
[White "Hartikainen, Jarmo"]
[Black "Salemgareev, Tagir"]
[WhiteFideId "503134"]
[BlackFideId "24199052"]
[WhiteElo "2094"]
[BlackElo "2659"]
[Result "0-1"]
[Round "3"]
[TimeControl "180+1"]
[Date "2023.08.08"]
[WhiteClock "0:00:02"]
[BlackClock "0:00:25"]
[Board "150"]

1. e4 {[%clk 0:03:00]}  c5 {[%clk 0:02:54]} 2. c3 {[%clk 0:03:00]}  Nf6 {[%clk 0:02:54]} 3. e5 {[%clk 0:03:00]}  Nd5 {[%clk 0:02:54]} 4. d4 {[%clk 0:03:00]}  cxd4 {[%clk 0:02:53]} 5. Nf3 {[%clk 0:03:00]}  e6 {[%clk 0:02:53]} 6. cxd4 {[%clk 0:02:59]}  d6 {[%clk 0:02:54]} 7. Nc3 {[%clk 0:03:00]}  Nxc3 {[%clk 0:02:53]} 8. bxc3 {[%clk 0:03:00]}  Qc7 {[%clk 0:02:54]} 9. Bd2 {[%clk 0:02:59]}  Nd7 {[%clk 0:02:54]} 10. exd6 {[%clk 0:02:51]}  Bxd6 {[%clk 0:02:55]} 11. Bd3 {[%clk 0:02:51]}  b6 {[%clk 0:02:51]} 12. Qc2 {[%clk 0:02:45]}  Nb8 {[%clk 0:02:45]} 13. h4 {[%clk 0:02:41]}  Nd7 {[%clk 0:02:44]} 14. h5 {[%clk 0:02:38]}  h6 {[%clk 0:02:43]} 15. O-O {[%clk 0:02:33]}  Bb7 {[%clk 0:02:44]} 16. Be4 {[%clk 0:02:31]}  O-O {[%clk 0:02:39]} 17. Rfe1 {[%clk 0:02:30]}  Bxe4 {[%clk 0:02:35]} 18. Qxe4 {[%clk 0:02:30]}  Nf6 {[%clk 0:02:35]} 19. Qh4 {[%clk 0:02:19]}  Be7 {[%clk 0:02:26]} 20. Qh3 {[%clk 0:02:16]}  Rac8 {[%clk 0:02:24]} 21. Ne5 {[%clk 0:02:11]}  b5 {[%clk 0:01:57]} 22. a3 {[%clk 0:01:58]}  Nd5 {[%clk 0:01:54]} 23. Kh1 {[%clk 0:01:33]}  a5 {[%clk 0:01:44]} 24. Re4 {[%clk 0:01:09]}  Nxc3 {[%clk 0:01:26]} 25. Rg4 {[%clk 0:00:58]}  Kh8 {[%clk 0:00:55]} 26. Rc1 {[%clk 0:00:20]}  b4 {[%clk 0:00:48]} 27. axb4 {[%clk 0:00:20]}  axb4 {[%clk 0:00:49]} 28. Qe3 {[%clk 0:00:16]}  Bf6 {[%clk 0:00:32]} 29. f4 {[%clk 0:00:08]}  Nd5 {[%clk 0:00:24]} 30. Rxc7 {[%clk 0:00:07]}  Nxe3 {[%clk 0:00:24]} 31. Rxc8 {[%clk 0:00:07]}  Rxc8 {[%clk 0:00:25]} 32. Bxe3 {[%clk 0:00:07]}  b3 {[%clk 0:00:25]} 33. Rg3 {[%clk 0:00:02]}  b2 {[%clk 0:00:25]} 0-1


[Site "https://www.chess.com"]